[Event "FIDE World Rapid-ch Open 2018"]
[White "Ponkratov, Pavel"]
[Black "Guseinov, Gadir"]
[Site "St. Petersburg"]
[Round "12.13"]
[Annotator "ChessBase"]
[Result "1-0"]
[Date "2018.12.28"]
[WhiteElo "2630"]
[BlackElo "2664"]
[PlyCount "87"]
[TimeControl "900+10"]

1. e4 {[%emt 0:0:0]} c5 {[%emt 0:0:0]} 2. Nf3 {[%emt 0:0:0]} g6 {[%emt 0:0:0]} 3. c3 {[%emt 0:0:0]} d5 {[%emt 0:0:1]} 4. e5 {[%emt 0:0:1]} Nc6 {[%emt 0:0:7]
} 5. Bb5 {[%emt 0:0:25]} Bd7 {[%emt 0:0:17]} 6. Bxc6 {[%emt 0:0:0]} Bxc6 {[%emt 0:0:6]} 7. d4 {[%emt 0:0:1]} cxd4 {[%emt 0:0:10]} 8. Nxd4 {[%emt 0:0:20]} e6 {[%emt 0:0:15]} 9. 0-0 {[%emt 0:0:4]} h5 {[%emt 0:0:0]} 10. Nd2 {[%emt 0:0:2]} Nh6 {[%emt 0:0:7]} 11. N2f3 {[%emt 0:0:2]} Nf5 {[%emt 0:0:8]} 12. Bg5 {[%emt 0:0:18]} Be7 {[%emt 0:0:6]} 13. Bxe7 {[%emt 0:0:38]
} Qxe7 {[%emt 0:0:2]} 14. Nxf5 {[%emt 0:0:32]} gxf5 {[%emt 0:0:0]} 15. Qd4 {[%emt 0:0:1]} Rg8 {[%emt 0:0:13]} 16. h3 {[%emt 0:0:10]} b6 {[%emt 0:0:0]} 17. a4 {[%emt 0:0:6]} Rc8 {[%emt 0:0:41]} 18. a5 {[%emt 0:0:6]
} b5 {[%emt 0:0:46]} 19. a6 {[%emt 0:0:5]} Ba8 {[%emt 0:0:17]
} 20. b3 {[%emt 0:0:5]} Qc5 {[%emt 0:1:22]} 21. Rfc1 {[%emt 0:0:12]} Qxd4 {[%emt 0:0:2]
} 22. cxd4 {[%emt 0:0:28]} Kd7 {[%emt 0:0:19]} 23. Ne1 {[%emt 0:0:3]
} Ke7 {[%emt 0:2:21]} 24. Nd3 {[%emt 0:0:10]} Bc6 {[%emt 0:0:0]} 25. Rc5 {[%emt 0:0:11]} Bd7 {[%emt 0:0:3]} 26. Rac1 {[%emt 0:0:5]} Rxc5 {[%emt 0:0:6]} 27. Rxc5 {[%emt 0:0:5]} Rc8 {[%emt 0:1:4]} 28. Kh2 {[%emt 0:3:33]
} h4 {[%emt 0:2:11]} 29. b4 {[%emt 0:0:48]} Bc6 {[%emt 0:1:51]
} 30. g3 {[%emt 0:0:7]} hxg3+ {[%emt 0:0:12]} 31. fxg3 {[%emt 0:0:3]} Kd7 {[%emt 0:0:5]} 32. Rc1 {[%emt 0:0:39]} Kc7 {[%emt 0:0:50]} 33. Kg2 {[%emt 0:0:7]
} Kb6 {[%emt 0:0:17]} 34. Nc5 {[%emt 0:0:16]} Rd8 {[%emt 0:0:0]} 35. Kf3 {[%emt 0:0:17]} Bd7 {[%emt 0:0:1]} 36. h4 {[%emt 0:1:19]} Bc8 {[%emt 0:0:2]} 37. h5 {[%emt 0:0:1]} Bxa6 {[%emt 0:0:25]} 38. h6 {[%emt 0:0:0]} Bc8 {[%emt 0:0:31]} 39. Nb3 {[%emt 0:0:10]} Rh8 {[%emt 0:1:9]} 40. Kf4 {[%emt 0:0:14]} Bd7 {[%emt 0:3:4]} 41. Rh1 {[%emt 0:0:4]} Kc7 {[%emt 0:0:38]
} 42. h7 {[%emt 0:0:22]} Kd8 {[%emt 0:0:13]} 43. Kg5 {[%emt 0:0:0]} Ke7 {[%emt 0:0:1]} 44. Kh6 {[%emt 0:0:1]} 1-0

[Event "FIDE World Rapid-ch Open 2018"]
[White "Alekseev, Evgeny"]
[Black "Oparin, Grigoriy"]
[Site "St. Petersburg"]
[Round "12.15"]
[Annotator "ChessBase"]
[Result "0-1"]
[Date "2018.12.28"]
[WhiteElo "2639"]
[BlackElo "2613"]
[PlyCount "76"]
[TimeControl "900+10"]

1. Nf3 {[%emt 0:0:0]} Nf6 {[%emt 0:0:0]} 2. c4 {[%emt 0:0:0]} b6 {[%emt 0:0:14]
} 3. Nc3 {[%emt 0:1:52]} Bb7 {[%emt 0:0:2]} 4. d3 {[%emt 0:0:0]} c5 {[%emt 0:1:1]} 5. e4 {[%emt 0:0:17]} Nc6 {[%emt 0:0:2]} 6. g3 {[%emt 0:0:47]
} g6 {[%emt 0:0:10]} 7. Bg2 {[%emt 0:0:10]} Bg7 {[%emt 0:0:2]
} 8. 0-0 {[%emt 0:0:3]} 0-0 {[%emt 0:0:3]} 9. h3 {[%emt 0:0:18]} d6 {[%emt 0:0:31]
} 10. Be3 {[%emt 0:0:20]} Ne8 {[%emt 0:0:28]} 11. d4 {[%emt 0:0:0]} cxd4 {[%emt 0:0:10]} 12. Nxd4 {[%emt 0:0:2]} Rc8 {[%emt 0:0:6]} 13. b3 {[%emt 0:1:28]} Qd7 {[%emt 0:1:29]} 14. Nde2 {[%emt 0:1:7]} Nf6 {[%emt 0:0:59]
} 15. Rc1 {[%emt 0:0:22]} Rfd8 {[%emt 0:0:10]} 16. Qd2 {[%emt 0:0:20]
} e6 {[%emt 0:0:30]} 17. Rfd1 {[%emt 0:0:18]} Qe7 {[%emt 0:0:0]} 18. Kh1 {[%emt 0:1:48]} Qf8 {[%emt 0:1:9]} 19. Kg1 {[%emt 0:1:19]} h6 {[%emt 0:0:10]} 20. Qe1 {[%emt 0:0:33]} Qe7 {[%emt 0:0:11]} 21. Rd2 {[%emt 0:0:26]
} Rd7 {[%emt 0:1:11]} 22. Rcd1 {[%emt 0:0:8]} Rcd8 {[%emt 0:0:0]} 23. f4 {[%emt 0:0:36]} h5 {[%emt 0:0:41]} 24. Qf2 {[%emt 0:0:11]} Nb4 {[%emt 0:1:12]} 25. Qe1 {[%emt 0:2:47]} Na6 {[%emt 0:0:13]} 26. Nc1 {[%emt 0:2:8]
} h4 {[%emt 0:3:32]} 27. gxh4 {[%emt 0:0:24]} Nc5 {[%emt 0:0:0]} 28. Bf2 {[%emt 0:0:10]} Nh5 {[%emt 0:0:4]} 29. N1e2 {[%emt 0:0:6]} Nxf4 {[%emt 0:0:8]} 30. Nxf4 {[%emt 0:0:13]} Bxc3 {[%emt 0:0:2]} 31. Qe3 {[%emt 0:0:5]
} Bxd2 32. Rxd2 {[%emt 0:0:0]} e5 {[%emt 0:0:24]} 33. Ne2 {[%emt 0:0:6]
} f5 {[%emt 0:0:19]} 34. Nc3 {[%emt 0:0:2]} Qf7 {[%emt 0:0:0]} 35. Qe1 {[%emt 0:0:21]} Nxe4 {[%emt 0:0:20]} 36. Nxe4 {[%emt 0:0:2]} Bxe4 {[%emt 0:0:1]} 37. Bxe4 {[%emt 0:0:3]} fxe4 {[%emt 0:0:2]} 38. Qxe4 {[%emt 0:0:2]} Qf5 {[%emt 0:0:1]} 0-1

[Event "FIDE World Rapid-ch Open 2018"]
[White "Paravyan, David"]
[Black "Cheparinov, Ivan"]
[Site "St. Petersburg"]
[Round "12.16"]
[Annotator "ChessBase"]
[Result "1/2-1/2"]
[Date "2018.12.28"]
[WhiteElo "2634"]
[BlackElo "2709"]
[PlyCount "82"]
[TimeControl "900+10"]

1. d4 {[%emt 0:0:0]} Nf6 {[%emt 0:0:0]} 2. Nf3 {[%emt 0:0:0]} d5 {[%emt 0:0:0]
} 3. a3 {[%emt 0:0:0]} e6 {[%emt 0:0:44]} 4. Bf4 {[%emt 0:0:0]} Bd6 {[%emt 0:0:28]} 5. e3 {[%emt 0:0:2]} b6 {[%emt 0:0:35]} 6. Bb5+ {[%emt 0:0:13]
} c6 {[%emt 0:0:14]} 7. Bd3 {[%emt 0:0:6]} Bxf4 {[%emt 0:0:0]} 8. exf4 {[%emt 0:0:1]} Ba6 {[%emt 0:0:1]} 9. Bxa6 {[%emt 0:0:14]} Nxa6 {[%emt 0:0:2]} 10. Qe2 {[%emt 0:0:9]} Nc7 {[%emt 0:0:10]} 11. 0-0 {[%emt 0:2:19]
} 0-0 {[%emt 0:0:3]} 12. Nbd2 {[%emt 0:0:11]} c5 {[%emt 0:0:0]} 13. Rfd1 {[%emt 0:0:31]} Nce8 {[%emt 0:0:47]} 14. dxc5 {[%emt 0:0:16]} bxc5 {[%emt 0:0:0]} 15. Ne5 {[%emt 0:4:44]} Nd6 {[%emt 0:0:28]} 16. b4 {[%emt 0:0:3]
} cxb4 {[%emt 0:1:21]} 17. axb4 {[%emt 0:0:2]} Qb6 {[%emt 0:0:0]} 18. Ra6 {[%emt 0:1:10]} Qxb4 {[%emt 0:2:57]} 19. Rb1 {[%emt 0:0:3]} Qxf4 {[%emt 0:0:23]} 20. Nd3 {[%emt 0:3:4]} Qd4 {[%emt 0:1:42]} 21. Rxd6 {[%emt 0:0:2]
} Rfc8 {[%emt 0:0:0]} 22. Nf3 {[%emt 0:0:58]} Qa4 {[%emt 0:0:0]} 23. Rb4 {[%emt 0:1:43]} Qa3 {[%emt 0:1:18]} 24. g3 {[%emt 0:0:29]} Rc4 {[%emt 0:1:55]} 25. c3 {[%emt 0:0:53]} a5 {[%emt 0:2:30]} 26. Rbb6 {[%emt 0:0:0]} Ne4 {[%emt 0:0:8]} 27. Rd7 {[%emt 0:0:35]} Nxc3 {[%emt 0:0:31]} 28. Qb2 {[%emt 0:0:4]} Qxb2 {[%emt 0:0:14]} 29. Nxb2 {[%emt 0:0:8]} Rcc8 {[%emt 0:0:57]
} 30. Rbb7 {[%emt 0:0:7]} Rcb8 {[%emt 0:0:6]} 31. Rxf7 {[%emt 0:0:24]
} Rxb7 {[%emt 0:0:3]} 32. Rxb7 {[%emt 0:0:1]} a4 {[%emt 0:0:0]} 33. Nd3 {[%emt 0:0:47]} a3 {[%emt 0:0:3]} 34. Nb4 {[%emt 0:0:1]} a2 {[%emt 0:0:9]
} 35. Nxa2 {[%emt 0:0:9]} Nxa2 {[%emt 0:0:7]} 36. Nd4 {[%emt 0:0:12]
} Re8 {[%emt 0:0:7]} 37. f4 {[%emt 0:1:13]} Nc3 {[%emt 0:0:0]} 38. f5 {[%emt 0:0:10]} exf5 {[%emt 0:0:23]} 39. Nxf5 {[%emt 0:0:3]} g6 {[%emt 0:0:14]} 40. Nh6+ {[%emt 0:0:4]} Kh8 {[%emt 0:0:2]} 41. Nf7+ {[%emt 0:0:3]
} Kg8 {[%emt 0:0:2]} 1/2-1/2

[Event "FIDE World Rapid-ch Open 2018"]
[White "Sakaev, Konstantin"]
[Black "Duda, Jan-Krzysztof"]
[Site "St. Petersburg"]
[Round "12.18"]
[Annotator "ChessBase"]
[Result "1/2-1/2"]
[Date "2018.12.28"]
[WhiteElo "2584"]
[BlackElo "2738"]
[PlyCount "51"]
[TimeControl "900+10"]

1. d4 {[%emt 0:0:0]} Nf6 {[%emt 0:0:0]} 2. c4 {[%emt 0:0:0]} g6 {[%emt 0:0:0]} 3. Nc3 {[%emt 0:0:0]} d5 {[%emt 0:0:0]} 4. Nf3 {[%emt 0:0:7]} Bg7 {[%emt 0:0:0]} 5. h4 {[%emt 0:0:2]} c6 {[%emt 0:0:5]} 6. cxd5 {[%emt 0:0:0]} cxd5 {[%emt 0:0:2]} 7. Bf4 {[%emt 0:0:2]} Nc6 {[%emt 0:0:25]} 8. e3 {[%emt 0:0:2]} 0-0 {[%emt 0:1:20]} 9. Qb3 {[%emt 0:0:2]} Na5 {[%emt 0:0:0]} 10. Qb4 {[%emt 0:0:22]} Nc6 {[%emt 0:0:17]} 11. Qb3 {[%emt 0:0:8]} Na5 {[%emt 0:0:26]} 12. Qb4 {[%emt 0:0:20]} Ne4 {[%emt 0:0:29]} 13. Rc1 {[%emt 0:0:54]
} Nc6 {[%emt 0:2:42]} 14. Qb3 {[%emt 0:0:6]} Nxc3 {[%emt 0:0:0]} 15. Rxc3 {[%emt 0:0:30]} e5 {[%emt 0:0:35]} 16. Nxe5 {[%emt 0:1:21]} Nxe5 {[%emt 0:0:10]} 17. Bxe5 {[%emt 0:0:10]} Bxe5 {[%emt 0:0:3]} 18. dxe5 {[%emt 0:0:1]} d4 {[%emt 0:0:4]} 19. exd4 {[%emt 0:0:17]} Qxd4 {[%emt 0:0:0]} 20. Bc4 {[%emt 0:0:49]} Qxe5+ {[%emt 0:0:56]} 21. Re3 {[%emt 0:0:7]
} Qa5+ {[%emt 0:0:2]} 22. Ke2 {[%emt 0:4:17]} Bg4+ {[%emt 0:3:25]} 23. f3 {[%emt 0:0:4]
} Bd7 {[%emt 0:0:6]} 24. Qc3 {[%emt 0:0:39]} Qxc3 {[%emt 0:0:0]} 25. Rxc3 {[%emt 0:0:4]} Rad8 {[%emt 0:1:54]} 26. Rd1 {[%emt 0:0:25]} 1/2-1/2

[Event "FIDE World Rapid-ch Open 2018"]
[White "Salem, A.R. Saleh"]
[Black "Goganov, Aleksey"]
[Site "St. Petersburg"]
[Round "12.19"]
[Annotator "ChessBase"]
[Result "1-0"]
[Date "2018.12.28"]
[WhiteElo "2660"]
[BlackElo "2612"]
[PlyCount "101"]
[TimeControl "900+10"]

1. e4 {[%emt 0:0:0]} e6 {[%emt 0:0:0]} 2. d4 {[%emt 0:0:0]} d5 {[%emt 0:0:0]} 3. Nd2 {[%emt 0:0:0]} c5 {[%emt 0:0:0]} 4. exd5 {[%emt 0:0:0]} Qxd5 {[%emt 0:0:0]} 5. Ngf3 {[%emt 0:0:2]} cxd4 {[%emt 0:0:0]} 6. Bc4 {[%emt 0:0:1]
} Qd8 {[%emt 0:0:3]} 7. 0-0 {[%emt 0:0:3]} Nc6 {[%emt 0:0:0]} 8. Nb3 {[%emt 0:0:1]} a6 {[%emt 0:0:8]} 9. Nbxd4 {[%emt 0:0:2]} Nxd4 {[%emt 0:0:7]} 10. Qxd4 {[%emt 0:0:2]} Qxd4 {[%emt 0:0:12]} 11. Nxd4 {[%emt 0:0:2]
} Nf6 {[%emt 0:1:14]} 12. Be2 {[%emt 0:0:4]} e5 {[%emt 0:0:0]} 13. Nb3 {[%emt 0:0:2]} Be6 {[%emt 0:1:38]} 14. Rd1 {[%emt 0:1:20]} Rc8 {[%emt 0:2:44]} 15. c3 {[%emt 0:0:44]} Be7 {[%emt 0:0:37]} 16. Bf3 {[%emt 0:0:0]} e4 {[%emt 0:1:1]} 17. Be2 {[%emt 0:0:2]} 0-0 {[%emt 0:0:18]} 18. Nd4 {[%emt 0:0:23]} Bg4 {[%emt 0:2:4]} 19. Bxg4 {[%emt 0:0:31]} Nxg4 {[%emt 0:0:1]
} 20. Bf4 {[%emt 0:0:2]} Rfd8 {[%emt 0:1:30]} 21. h3 {[%emt 0:0:0]} Nf6 {[%emt 0:0:1]} 22. Nf5 {[%emt 0:1:25]} Bf8 {[%emt 0:0:2]} 23. Bg5 {[%emt 0:0:19]} Rxd1+ {[%emt 0:2:40]} 24. Rxd1 {[%emt 0:0:3]} Ne8 {[%emt 0:0:1]
} 25. Rd7 {[%emt 0:2:24]} f6 {[%emt 0:1:6]} 26. Bf4 {[%emt 0:0:0]} b5 {[%emt 0:0:16]} 27. Ra7 {[%emt 0:2:25]} g6 {[%emt 0:0:40]} 28. Ne7+ {[%emt 0:1:25]} Bxe7 {[%emt 0:0:1]} 29. Rxe7 {[%emt 0:0:1]} f5 {[%emt 0:0:1]
} 30. Bh6 {[%emt 0:1:1]} Nf6 {[%emt 0:0:38]} 31. Rg7+ {[%emt 0:0:18]
} Kh8 {[%emt 0:0:1]} 32. Ra7 {[%emt 0:0:2]} Rc6 {[%emt 0:0:0]} 33. Rf7 {[%emt 0:0:30]} Rd6 {[%emt 0:0:25]} 34. Kh2 {[%emt 0:1:1]} Nd7 {[%emt 0:0:9]} 35. g4 {[%emt 0:1:1]} fxg4 {[%emt 0:0:6]} 36. hxg4 {[%emt 0:0:1]
} Kg8 {[%emt 0:0:3]} 37. Rg7+ {[%emt 0:0:1]} Kh8 {[%emt 0:0:0]} 38. Re7 {[%emt 0:0:9]} Kg8 {[%emt 0:0:7]} 39. Kg2 {[%emt 0:0:28]} Rd3 {[%emt 0:0:34]} 40. b3 {[%emt 0:0:29]} Nf6 {[%emt 0:0:15]} 41. Rg7+ {[%emt 0:0:4]
} Kf8 {[%emt 0:0:5]} 42. Rxg6+ {[%emt 0:0:38]} Kf7 {[%emt 0:0:0]} 43. Rg7+ {[%emt 0:0:1]} Ke6 {[%emt 0:0:1]} 44. c4 {[%emt 0:2:6]} bxc4 {[%emt 0:0:1]} 45. bxc4 {[%emt 0:0:0]} Rc3 {[%emt 0:0:10]} 46. g5 {[%emt 0:1:16]
} Nh5 {[%emt 0:0:1]} 47. Rxh7 {[%emt 0:0:2]} Nf4+ {[%emt 0:0:0]} 48. Kh2 {[%emt 0:0:2]} Kf5 {[%emt 0:0:24]} 49. Rf7+ {[%emt 0:0:15]} Kg4 {[%emt 0:0:1]} 50. Rxf4+ {[%emt 0:0:5]} Kxf4 {[%emt 0:0:1]} 51. g6+ {[%emt 0:0:1]
} 1-0

[Event "FIDE World Rapid-ch Open 2018"]
[White "Vallejo Pons, Francisco"]
[Black "Harikrishna, Pentala"]
[Site "St. Petersburg"]
[Round "12.22"]
[Annotator "ChessBase"]
[Result "0-1"]
[Date "2018.12.28"]
[WhiteElo "2695"]
[BlackElo "2725"]
[PlyCount "78"]
[TimeControl "900+10"]

1. d4 {[%emt 0:0:0]} Nf6 {[%emt 0:0:0]} 2. c4 {[%emt 0:0:0]} e6 {[%emt 0:0:0]} 3. Nc3 {[%emt 0:0:0]} Bb4 {[%emt 0:0:0]} 4. Qc2 {[%emt 0:0:0]} d5 {[%emt 0:0:0]} 5. cxd5 {[%emt 0:0:0]} Qxd5 {[%emt 0:0:1]} 6. Nf3 {[%emt 0:0:2]
} Qf5 {[%emt 0:0:26]} 7. Qb3 {[%emt 0:0:12]} Nc6 {[%emt 0:0:0]} 8. Bd2 {[%emt 0:0:7]} 0-0 {[%emt 0:1:37]} 9. h3 {[%emt 0:0:7]} Bxc3 {[%emt 0:0:28]
} 10. Bxc3 {[%emt 0:0:22]} b6 {[%emt 0:0:12]} 11. g4 {[%emt 0:0:0]} Qd5 {[%emt 0:0:51]} 12. Qc2 {[%emt 0:2:50]} Bb7 {[%emt 0:1:6]} 13. Bg2 {[%emt 0:0:5]} Qd6 {[%emt 0:0:26]} 14. Rd1 {[%emt 0:3:48]} Nb4 {[%emt 0:1:56]
} 15. Qb3 {[%emt 0:3:13]} a5 {[%emt 0:1:53]} 16. Nh4 {[%emt 0:0:0]} Bd5 {[%emt 0:1:56]} 17. Bxd5 {[%emt 0:0:14]} Nfxd5 {[%emt 0:0:3]} 18. a3 {[%emt 0:1:15]} Qc6 {[%emt 0:0:46]} 19. Bxb4 {[%emt 0:2:7]} axb4 {[%emt 0:0:7]
} 20. 0-0 {[%emt 0:1:26]} bxa3 {[%emt 0:0:51]} 21. bxa3 {[%emt 0:0:7]
} Ra4 {[%emt 0:0:50]} 22. Rc1 {[%emt 0:0:5]} Qa8 {[%emt 0:0:0]} 23. e3 {[%emt 0:0:21]} Rxa3 {[%emt 0:0:12]} 24. Qc2 {[%emt 0:0:6]} b5 {[%emt 0:0:55]} 25. Ng2 {[%emt 0:0:1]} b4 {[%emt 0:0:5]} 26. Qc5 {[%emt 0:0:0]} b3 {[%emt 0:0:38]} 27. e4 {[%emt 0:0:12]} Nf6 {[%emt 0:0:49]} 28. f3 {[%emt 0:0:0]} b2 {[%emt 0:0:7]} 29. Rb1 {[%emt 0:0:26]} Rb8 {[%emt 0:0:0]} 30. Qxc7 {[%emt 0:0:21]} h6 {[%emt 0:0:1]} 31. h4 {[%emt 0:0:13]} Ra1 {[%emt 0:0:29]} 32. g5 {[%emt 0:0:8]} Rxb1 {[%emt 0:0:14]} 33. Rxb1 {[%emt 0:0:1]
} Rc8 {[%emt 0:0:1]} 34. Qf4 {[%emt 0:0:29]} Qa2 {[%emt 0:0:0]} 35. Rxb2 {[%emt 0:0:8]} Qxb2 {[%emt 0:0:12]} 36. gxf6 {[%emt 0:0:2]} Qxd4+ {[%emt 0:0:5]} 37. Kh2 {[%emt 0:0:13]} Qxf6 {[%emt 0:0:2]} 38. Qg3 {[%emt 0:0:4]
} Rc2 {[%emt 0:0:8]} 39. Qg4 {[%emt 0:0:5]} Qe5+ {[%emt 0:0:0]} 0-1

[Event "FIDE World Rapid-ch Open 2018"]
[White "Grischuk, Alexander"]
[Black "Postny, Evgeny"]
[Site "St. Petersburg"]
[Round "12.24"]
[Annotator "ChessBase"]
[Result "1-0"]
[Date "2018.12.28"]
[WhiteElo "2771"]
[BlackElo "2615"]
[PlyCount "59"]
[TimeControl "900+10"]

1. Nf3 {[%emt 0:0:0]} d5 {[%emt 0:0:0]} 2. g3 {[%emt 0:0:0]} c6 {[%emt 0:0:0]} 3. Bg2 {[%emt 0:0:0]} Bg4 {[%emt 0:0:1]} 4. 0-0 {[%emt 0:0:0]} Nd7 {[%emt 0:0:4]} 5. d4 {[%emt 0:0:0]} e6 {[%emt 0:0:9]} 6. c4 {[%emt 0:0:0]} Ngf6 {[%emt 0:0:5]} 7. cxd5 {[%emt 0:0:3]} exd5 {[%emt 0:0:31]} 8. Nc3 {[%emt 0:0:2]} Bd6 {[%emt 0:0:23]} 9. Nh4 {[%emt 0:0:30]} Nb6 {[%emt 0:0:0]} 10. f3 {[%emt 0:0:48]} Be6 {[%emt 0:0:33]} 11. e4 {[%emt 0:0:6]} Be7 {[%emt 0:0:17]} 12. e5 {[%emt 0:9:43]} Nfd7 {[%emt 0:0:5]} 13. f4 {[%emt 0:0:1]
} Bxh4 {[%emt 0:0:2]} 14. f5 {[%emt 0:0:1]} Bxf5 {[%emt 0:0:0]} 15. Rxf5 {[%emt 0:0:11]} Be7 {[%emt 0:0:3]} 16. Qg4 {[%emt 0:0:59]} g6 {[%emt 0:1:33]} 17. Rf2 {[%emt 0:0:20]} 0-0 {[%emt 0:3:53]} 18. Bh6 {[%emt 0:0:21]
} f5 {[%emt 0:0:4]} 19. Qh3 {[%emt 0:0:33]} Re8 {[%emt 0:0:0]} 20. g4 {[%emt 0:0:12]} f4 {[%emt 0:1:51]} 21. Ne2 {[%emt 0:0:59]} Bh4 {[%emt 0:0:55]
} 22. Rxf4 {[%emt 0:0:20]} Bg5 {[%emt 0:0:18]} 23. Rf2 {[%emt 0:1:22]
} Bxh6 {[%emt 0:0:11]} 24. Qxh6 {[%emt 0:0:2]} Rf8 {[%emt 0:0:0]} 25. Nf4 {[%emt 0:1:13]} Qe7 {[%emt 0:0:3]} 26. g5 {[%emt 0:0:2]} Rf5 {[%emt 0:1:23]} 27. Nxg6 {[%emt 0:0:8]} Qxg5 {[%emt 0:0:19]} 28. Ne7+ {[%emt 0:0:2]
} Qxe7 {[%emt 0:0:8]} 29. Rxf5 {[%emt 0:0:1]} Nf8 {[%emt 0:0:0]} 30. Raf1 {[%emt 0:0:12]} 1-0

[Event "FIDE World Rapid-ch Open 2018"]
[White "Rakhmanov, Aleksandr"]
[Black "Akopian, Vladimir"]
[Site "St. Petersburg"]
[Round "12.25"]
[Annotator "ChessBase"]
[Result "1-0"]
[Date "2018.12.28"]
[WhiteElo "2629"]
[BlackElo "2650"]
[PlyCount "57"]
[TimeControl "900+10"]

1. c4 {[%emt 0:0:0]} e5 {[%emt 0:0:22]} 2. Nf3 {[%emt 0:0:0]} Nc6 {[%emt 0:0:11]
} 3. d4 {[%emt 0:0:0]} e4 {[%emt 0:0:54]} 4. Nfd2 {[%emt 0:0:0]} f5 {[%emt 0:0:27]} 5. e3 {[%emt 0:0:2]} Nf6 {[%emt 0:0:2]} 6. Nc3 {[%emt 0:0:2]
} Bb4 {[%emt 0:0:28]} 7. Qb3 {[%emt 0:0:21]} a5 {[%emt 0:0:38]
} 8. a3 {[%emt 0:0:59]} Bxc3 {[%emt 0:1:12]} 9. Qxc3 {[%emt 0:0:45]} d5 {[%emt 0:1:12]
} 10. Be2 {[%emt 0:0:26]} 0-0 {[%emt 0:0:51]} 11. 0-0 {[%emt 0:0:0]} Be6 {[%emt 0:0:59]} 12. b4 {[%emt 0:1:7]} axb4 {[%emt 0:0:15]} 13. axb4 {[%emt 0:0:1]} Rxa1 {[%emt 0:0:30]} 14. Qxa1 {[%emt 0:0:2]} Nxb4 {[%emt 0:0:27]
} 15. Qb1 {[%emt 0:0:54]} Nd3 {[%emt 0:1:31]} 16. Ba3 {[%emt 0:0:0]} Re8 {[%emt 0:0:16]} 17. Bxd3 {[%emt 0:6:1]} exd3 {[%emt 0:0:2]} 18. c5 {[%emt 0:0:3]} f4 {[%emt 0:2:42]} 19. Qxd3 {[%emt 0:0:10]} fxe3 {[%emt 0:0:4]
} 20. Qxe3 {[%emt 0:0:10]} Bg4 {[%emt 0:0:32]} 21. Qb3 {[%emt 0:2:27]
} Re2 {[%emt 0:0:21]} 22. Bc1 {[%emt 0:0:19]} Qc8 {[%emt 0:0:0]} 23. Nb1 {[%emt 0:0:35]} Re8 {[%emt 0:0:23]} 24. Nc3 {[%emt 0:0:52]} Be2 {[%emt 0:3:2]} 25. Nxd5 {[%emt 0:1:11]} Nxd5 {[%emt 0:0:34]} 26. Qxd5+ {[%emt 0:0:3]
} Kh8 {[%emt 0:0:35]} 27. Re1 {[%emt 0:0:2]} Bb5 {[%emt 0:0:0]} 28. Be3 {[%emt 0:0:47]} Bc6 29. Qh5 1-0

[Event "FIDE World Rapid-ch Open 2018"]
[White "Motylev, Alexander"]
[Black "Tari, Aryan"]
[Site "St. Petersburg"]
[Round "12.26"]
[Annotator "ChessBase"]
[Result "1-0"]
[Date "2018.12.28"]
[WhiteElo "2644"]
[BlackElo "2620"]
[PlyCount "54"]
[TimeControl "900+10"]

1. e4 {[%emt 0:0:0]} c6 {[%emt 0:0:0]} 2. d4 {[%emt 0:0:0]} d5 {[%emt 0:0:0]} 3. e5 {[%emt 0:0:0]} Bf5 {[%emt 0:0:0]} 4. Nf3 {[%emt 0:0:0]} e6 {[%emt 0:0:0]} 5. c3 {[%emt 0:0:2]} Ne7 {[%emt 0:0:17]} 6. Nbd2 {[%emt 0:0:0]} Nd7 {[%emt 0:0:24]} 7. Nh4 {[%emt 0:0:12]} c5 {[%emt 0:0:51]} 8. Be2 {[%emt 0:0:28]} Bg6 {[%emt 0:0:37]} 9. 0-0 {[%emt 0:0:17]} Nf5 {[%emt 0:0:0]} 10. Nxg6 {[%emt 0:0:5]} hxg6 {[%emt 0:0:1]} 11. Nf3 {[%emt 0:0:2]} Be7 {[%emt 0:0:6]} 12. g3 {[%emt 0:0:50]} g5 {[%emt 0:0:46]} 13. Kg2 {[%emt 0:0:5]
} cxd4 {[%emt 0:1:56]} 14. cxd4 {[%emt 0:0:5]} Nb8 {[%emt 0:0:0]} 15. h3 {[%emt 0:2:0]} Nc6 {[%emt 0:0:8]} 16. Qa4 {[%emt 0:0:39]} Qb6 {[%emt 0:1:25]} 17. Rd1 {[%emt 0:0:21]} f6 {[%emt 0:0:25]} 18. Bd3 {[%emt 0:1:28]
} Kf7 {[%emt 0:0:22]} 19. Bxf5 {[%emt 0:4:53]} exf5 {[%emt 0:0:0]} 20. Qc2 {[%emt 0:0:20]} g4 {[%emt 0:1:45]} 21. hxg4 {[%emt 0:0:5]} fxg4 {[%emt 0:0:2]} 22. Nh4 {[%emt 0:0:1]} Rxh4 {[%emt 0:1:40]} 23. gxh4 {[%emt 0:0:2]
} Nxd4 {[%emt 0:0:2]} 24. e6+ {[%emt 0:1:13]} Nxe6 {[%emt 0:0:0]} 25. Rxd5 {[%emt 0:0:3]} Rd8 {[%emt 0:0:56]} 26. Qc4 {[%emt 0:0:58]} Rxd5 {[%emt 0:2:42]} 27. Qxd5 {[%emt 0:0:2]} g6 {[%emt 0:0:9]} 1-0

[Event "FIDE World Rapid-ch Open 2018"]
[White "Shirov, Alexei"]
[Black "Demidov, Mikhail"]
[Site "St. Petersburg"]
[Round "12.27"]
[Annotator "ChessBase"]
[Result "1-0"]
[Date "2018.12.28"]
[WhiteElo "2643"]
[BlackElo "2520"]
[PlyCount "71"]
[TimeControl "900+10"]

1. e4 {[%emt 0:0:0]} Nf6 {[%emt 0:0:0]} 2. e5 {[%emt 0:0:0]} Nd5 {[%emt 0:0:0]
} 3. d4 {[%emt 0:0:0]} d6 {[%emt 0:0:0]} 4. c4 {[%emt 0:0:0]} Nb6 {[%emt 0:0:0]} 5. exd6 {[%emt 0:0:0]} exd6 {[%emt 0:0:0]} 6. Nc3 {[%emt 0:1:1]} Be7 {[%emt 0:0:0]} 7. Bd3 {[%emt 0:0:2]} 0-0 {[%emt 0:0:0]} 8. Nge2 {[%emt 0:0:8]} Bg5 {[%emt 0:0:4]} 9. 0-0 {[%emt 0:0:55]} Nc6 {[%emt 0:0:39]} 10. Be4 {[%emt 0:1:39]} Re8 {[%emt 0:3:12]} 11. Qd3 {[%emt 0:0:5]
} Nb4 {[%emt 0:2:50]} 12. Qd1 {[%emt 0:3:30]} d5 {[%emt 0:0:0]} 13. cxd5 {[%emt 0:0:31]} N4xd5 {[%emt 0:0:4]} 14. Qd3 {[%emt 0:0:6]} h6 {[%emt 0:0:44]} 15. Bxg5 {[%emt 0:3:12]} Qxg5 {[%emt 0:0:7]} 16. f4 {[%emt 0:0:4]
} Qd8 {[%emt 0:0:11]} 17. f5 {[%emt 0:0:2]} Nf6 {[%emt 0:0:0]} 18. Bf3 {[%emt 0:0:4]} Qe7 {[%emt 0:1:25]} 19. Rfe1 {[%emt 0:3:11]} Qe3+ {[%emt 0:0:34]} 20. Qxe3 {[%emt 0:0:2]} Rxe3 {[%emt 0:0:1]} 21. Kf2 {[%emt 0:0:2]
} Rd3 {[%emt 0:1:15]} 22. Rad1 {[%emt 0:1:19]} Rxd1 {[%emt 0:0:0]} 23. Rxd1 {[%emt 0:0:7]} Bxf5 {[%emt 0:0:9]} 24. Bxb7 {[%emt 0:0:0]} Ng4+ {[%emt 0:0:9]} 25. Kg3 {[%emt 0:0:4]} Rb8 {[%emt 0:0:17]} 26. Bf3 {[%emt 0:0:29]} Ne3 {[%emt 0:0:8]} 27. Rc1 {[%emt 0:0:2]} Bd7 {[%emt 0:0:52]
} 28. Ne4 {[%emt 0:0:56]} Nbd5 {[%emt 0:0:23]} 29. Nc5 {[%emt 0:0:7]
} Bf5 {[%emt 0:1:50]} 30. Nc3 {[%emt 0:0:15]} c6 {[%emt 0:0:0]} 31. Nxd5 {[%emt 0:0:15]} Nxd5 {[%emt 0:0:7]} 32. b3 {[%emt 0:0:6]} Rb4 {[%emt 0:0:52]} 33. Bxd5 {[%emt 0:1:34]} cxd5 {[%emt 0:0:2]} 34. Kf4 {[%emt 0:0:1]
} Be4 {[%emt 0:0:23]} 35. a3 {[%emt 0:0:1]} Rxd4 {[%emt 0:0:0]} 36. Ke3 {[%emt 0:0:1]} 1-0